Cogmind - Beta 13 @@@ ROGUE MODE // 2024.05.28 @ 21:52:32 Player: Some Pennies Result: Destroyed by G-47 Trooper with Particle Gun Performance ------------- Evolutions (0) 0 Regions Visited (2) 400 Robots Destroyed (22) 110 Value Destroyed (324) 324 Prototype IDs (0) 0 Alien Tech Used (0) 0 Bonus (0) 0 TOTAL SCORE: 834 Bonus ------- None Cogmind --------- Core Integrity 0/250 Matter 274/300 Energy 100/100 System Corruption 0% Temperature Cool (9) Movement Flying (117) Ox1 Location -10/Mines Parts ------- > --- POWER (1) -------- (None) > --- PROPULSION (2) --- Flight Unit Flight Unit > --- UTILITY (2) ------ Medium Storage Unit Seismic Detector > --- WEAPON (2) ------- Light Assault Rifle Light Assault Rifle > --- INVENTORY (10) --- Flight Unit Flight Unit Flight Unit Improved Terrain Scanner ECM Suite Grenade Launcher Rocket Launcher Datajack Mining Laser Peak State ------------ > --- POWER ------------ Light Ion Engine > --- PROPULSION ------- Flight Unit Flight Unit > --- UTILITY ---------- Medium Storage Unit Seismic Detector > --- WEAPON ----------- Light Assault Rifle Rocket Launcher > --- INVENTORY -------- Light Ion Engine Flight Unit Flight Unit Flight Unit Improved Terrain Scanner ECM Suite Light Assault Rifle Light Assault Rifle Datajack Mining Laser [Rating: 9] Favorites ----------- Power Light Ion Engine Engine Light Ion Engine Propulsion Flight Unit Flight Unit Flight Unit Utility Seismic Detector Device Seismic Detector Storage Medium Storage Unit Processor Targeting Computer Weapon Light Assault Rifle Ballistic Gun Light Assault Rifle Launcher Rocket Launcher Build | -11 -10 -10 ------- Run | Yrd Mat Min Slots Evolved . | . . . Power . | . . . Propulsion . | . . . Utility . | . . . Weapon . | . . . Parts Attached 36 | 2 23 11 Power 3 | . 2 1 Engine 3 | . 2 1 Core . | . . . Reactor . | . . . Propulsion 10 | . 6 4 Treads . | . . . Leg . | . . . Wheel . | . . . Hover . | . . . Flight 10 | . 6 4 Utility 10 | . 10 . Device 4 | . 4 . Storage 5 | . 5 . Processor 1 | . 1 . Hackware . | . . . Protection . | . . . Artifact . | . . . Weapon 13 | 2 5 6 Energy Gun . | . . . Energy Cannon . | . . . Ballistic Gun 12 | 2 5 5 Ballistic Cannon . | . . . Launcher 1 | . . 1 Special Weapon . | . . . Impact Weapon . | . . . Slashing Weapon . | . . . Piercing Weapon . | . . . Special Melee Weapon . | . . . Unidentified Prototypes . | . . . Parts Lost 2 | . . 2 Power 1 | . . 1 Propulsion . | . . . Utility . | . . . Weapon 1 | . . 1 Highest Loss Streak 2 | . . 2 To Critical Strikes . | . . . Average Slot Usage (%) 72 | . 51 99 Engine 7 | . 2 13 Flight 16 | . 6 28 Device 9 | . 5 14 Storage 12 | . 10 14 Ballistic Gun 25 | . 23 27 Naked Turns . | . . . Heaviest Build 16 | 3 16 16 Greatest Support 8 | 3 8 8 Greatest Overweight (x) 2 | . 2 1 Average Overweight (x) . | . . 1 Largest Inventory Capacity 10 | 5 10 10 Average Capacity 8 | 5 7 10 Most Carried 10 | 5 9 10 Average Carried 7 | 1 5 9 Final Capacity 10 | 5 10 10 Final Carried 9 | 5 8 9 Class Distribution -------------------- 50% | Mutant 49% | Scavenger-Mutant Dominant Class ---------------- Mutant | -10/Materials Scavenger-Mutant | -10/Mines Resources | -11 -10 -10 ----------- Run | Yrd Mat Min Matter Collected 744 | 280 298 166 Remotely . | . . . Salvage Created 572 | 152 213 207 Parts 44 | 9 14 21 Haulers Intercepted . | . . . Recyclers Shooed 1 | 1 . . Parts Field Recycled . | . . . Retrieved Matter . | . . . Parts Self-Destructed . | . . . Prevented . | . . . Kills | -11 -10 -10 ------- Run | Yrd Mat Min Combat Hostiles Destroyed 14 | . 5 9 Guns 10 | . 5 5 AOE 4 | . . 4 Classes Destroyed 6 | 2 2 2 Worker 2 | . . 2 Tunneler 4 | 3 1 . Recycler 2 | 1 1 . Swarmer 9 | . 3 6 Grunt 3 | . 2 1 Sentry 2 | . . 2 Best Kill Streak 6 | 4 4 6 Combat Bots Only 5 | . 3 5 Max Kills in Single Turn 3 | 1 1 3 Gunslinging . | . . . Exploded 2 | . . 2 Melee . | . . . Uniques/NPCs Destroyed . | . . . Combat | -11 -10 -10 -------- Run | Yrd Mat Min Hostile Shots Fired 100 | . 32 68 Missed 30 | . 11 19 Damage Taken 756 | . 227 529 Core 260 | . 100 160 Absorbed by Shields . | . . . Core Remaining (%) 100 | 100 . . Volleys Fired 75 | 15 25 35 Largest 2 | 2 2 2 Hottest 53 | 40 40 53 Shots Fired 146 | 30 46 70 Gun 144 | 30 46 68 Cannon . | . . . Launcher 2 | . . 2 Special . | . . . Kinetic 144 | 30 46 68 Thermal . | . . . Explosive 2 | . . 2 Electromagnetic . | . . . Robot Hit Streak 10 | 4 8 10 Robot Miss Streak 3 | 2 3 3 Penetration Max . | . . . Secondary Targets 1 | . . 1 Max Gunslinging Chain 1 | . . 1 Shots Hit Robots 91 | 17 26 48 Core Hits 37 | 7 11 19 Critical Kills 1 | . 1 . Critical Parts Destroyed . | . . . Critical Strikes 1 | . 1 . Destroy 1 | . 1 . Melee Attacks . | . . . Impact . | . . . Slashing . | . . . Piercing . | . . . Sneak Attacks . | . . . Combat Hostiles . | . . . Follow-up Attacks . | . . . Damage Inflicted 1073 | 210 237 626 Guns 814 | 210 237 367 Cannons . | . . . Explosions 259 | . . 259 Melee . | . . . Ramming . | . . . Kinetic 814 | 210 237 367 Thermal . | . . . Explosive 259 | . . 259 Electromagnetic . | . . . Impact . | . . . Slashing . | . . . Piercing . | . . . Highest Corruption . | . . . Average Corruption . | . . . Corruption Purged . | . . . Corruption Blocked . | . . . Overload Shots . | . . . Overflow Damage . | . . . Projectiles . | . . . Explosions . | . . . Melee . | . . . Knockbacks . | . . . Impact . | . . . Kinetic . | . . . Secondary . | . . . Self-Inflicted Damage . | . . . Shots . | . . . Rammed . | . . . Targets Rammed . | . . . Kicked . | . . . Crushed . | . . . Highest Temperature 38 | . 7 38 Average Temperature 8 | . 2 8 Received Heat Transfer 255 | . 90 165 Siege Activations . | . . . Robots Corrupted . | . . . Combat Hostiles . | . . . Parts Fried . | . . . Impact Corruptions . | . . . Robots Melted . | . . . Combat Hostiles . | . . . Parts Melted . | . . . Heat Transferred . | . . . Parts Sabotaged . | . . . Parts Stolen . | . . . Parts Stripped . | . . . Power Chain Reactions . | . . . Alert | -11 -10 -10 ------- Run | Yrd Mat Min Peak Influence 255 | 20 109 255 Initial 34 | . 13 34 Average 80 | 7 51 126 Maximum Alert Level 1 | . . 1 Low Security (%) 89 | 100 100 75 Level 1 10 | . . 24 Level 2 . | . . . Level 3 . | . . . Level 4 . | . . . Level 5 . | . . . High Security . | . . . Max Security . | . . . Squads Dispatched 1 | . 1 . Investigation . | . . . Extermination . | . . . Reinforcement 1 | . 1 . Assault . | . . . Garrison . | . . . Intercept . | . . . Searches Triggered . | . . . Construction Impeded . | . . . Haulers Reinforced . | . . . Active Scanning Responses . | . . . Cargo Convoy Interrupts . | . . . Stealth | -11 -10 -10 --------- Run | Yrd Mat Min Distress Signals . | . . . Communications Jammed . | . . . Distress Signals . | . . . Times Spotted 25 | . 15 10 Peak Tracking Total 5 | . 3 5 Tactical Retreats . | . . . Traps | -11 -10 -10 ------- Run | Yrd Mat Min Traps Triggered 3 | . 3 . Indirectly . | . . . Trap Hack Attempts . | . . . Triggered . | . . . Disarmed . | . . . Reprogrammed . | . . . Reused . | . . . Traps Extracted . | . . . Installed . | . . . Triggered . | . . . Machines | -11 -10 -10 ---------- Run | Yrd Mat Min Machines Disabled . | . . . Max in Single Turn . | . . . Machines Repaired . | . . . Machines Dismantled . | . . . Machines Sabotaged . | . . . Overloaded Fab Kills . | . . . Hacking | -11 -10 -10 --------- Run | Yrd Mat Min Machines Accessed 5 | . 5 . Terminals 5 | . 5 . Fabricators . | . . . Repair Stations . | . . . Recycling Units . | . . . Scanalyzers . | . . . Garrison Access . | . . . Total Hacks 17 | . 17 . Successful 5 | . 5 . Failed 11 | . 11 . Catastrophic 1 | . 1 . Database Lockouts 1 | . 1 . Manual 8 | . 8 . Terminals 17 | . 17 . Fabricators . | . . . Repair Stations . | . . . Recycling Units . | . . . Scanalyzers . | . . . Garrison Access . | . . . Terminal Hacks 4 | . 4 . Robot Analysis 1 | . 1 . Terminal Index 1 | . 1 . Hauler Manifests 1 | . 1 . Zone Layout 1 | . 1 . Fabricator Hacks . | . . . Repair Station Hacks . | . . . Recycling Unit Hacks . | . . . Scanalyzer . | . . . Garrison Access Hacks . | . . . Unauthorized Hacks 1 | . 1 . Terminals 1 | . 1 . Botnet 1 | . 1 . Fabricators . | . . . Repair Stations . | . . . Recycling Units . | . . . Scanalyzers . | . . . Garrison Access . | . . . Data Cores Recovered . | . . . Used . | . . . Hacking Detections 3 | . 3 . Full Trace Events 1 | . 1 . Feedback Events . | . . . Feedback Blocked . | . . . Robot Schematics Acquired . | . . . Robots Built . | . . . Authchips . | . . . Time . | . . . Total Robot Build Rating . | . . . Part Schematics Acquired . | . . . Parts Built . | . . . Authchips . | . . . Time . | . . . Total Part Build Rating . | . . . Parts Repaired . | . . . Time . | . . . Parts Recycled . | . . . Recycled Matter . | . . . Retrieved Matter . | . . . Retrieved Components . | . . . Parts Scanalyzed . | . . . Part Schematics Acquired . | . . . Parts Damaged . | . . . Bothacking | -11 -10 -10 ------------ Run | Yrd Mat Min Used RIF Installer . | . . . Robots Hacked . | . . . Non-combat . | . . . Combat . | . . . Robot Hacks Applied . | . . . Relay Couplers Released . | . . . Fabnet Peak Effective % . | . . . Robots Rewired . | . . . Allies Hacked . | . . . Hacks Repelled . | . . . Allies | -11 -10 -10 -------- Run | Yrd Mat Min Total Allies . | . . . Largest Group . | . . . Highest-Rated Group . | . . . Highest-Rated Ally . | . . . Total Orders . | . . . Ally Attacks . | . . . Total Damage . | . . . Kills . | . . . Allies Corrupted . | . . . Allies Melted . | . . . Intel | -11 -10 -10 ------- Run | Yrd Mat Min Robot Analysis Total 1 | . 1 . Derelict Logs Recovered 2 | . . 2 Drone Launches . | . . . Drone Recoveries . | . . . Exploration | -11 -10 -10 ------------- Run | Yrd Mat Min Turns Passed 1363 | 86 704 573 Spaces Moved 1066 | 70 607 389 Core 523 | 70 453 . Treads . | . . . Legs . | . . . Wheels . | . . . Hover . | . . . Flight 543 | . 154 389 Fastest Speed 37 | 50 37 117 Average Speed 99 | 50 93 117 Slowest Speed 200 | 50 200 117 Overloaded Moves . | . . . Propulsion Burnouts . | . . . Robots Hopped . | . . . Cave-ins Triggered . | . . . Exploration Rate (%) 58 | 4 85 86 Regions Visited 2 Branch Regions 1 Pre-discovered Areas 1 | . . 1 Known Exits Taken . | . . . Unknown Exits Taken 2 | 1 1 . Scrap Searched 1 | . . 1 Spaces Dug . | . . . Terrain Destroyed 15 | . . 15 Melee . | . . . Projectile . | . . . AOE 15 | . . 15 Terrain Rammed . | . . . Walls Destroyed . | . . . Machines Disabled . | . . . Actions | -11 -10 -10 --------- Run | Yrd Mat Min Total 1247 | 93 702 452 Wait 34 | . 29 5 Move 1064 | 69 606 389 Hop . | . . . Pick Up 21 | 7 9 5 Fast Attach 10 | . 10 . Attach 7 | 2 4 1 Detach 3 | . 3 . Swap 19 | . 9 10 Drop 14 | . 7 7 Fire 75 | 15 25 35 Melee . | . . . Ram . | . . . Kick . | . . . Crush . | . . . Escape Stasis . | . . . Rewire . | . . . Trap . | . . . Miscellaneous . | . . . Route ------- -11/Scrapyard -10/Materials (discovered 4 exits: [*Mat x3] / [*Min]) -10/Mines (discovered 2 exits: [*Mat x2]) History --------- Turn | Location | Event 4 | -11/Scrapyard | Discovered new exit (range 15) 87 | -11/Scrapyard | Entered Materials 202 | -10/Materials | Central database locked down 322 | -10/Materials | Build established: Mutant 484 | -10/Materials | Discovered new exit (range 16) 534 | -10/Materials | Discovered new exit (range 14) 578 | -10/Materials | Discovered new exit (range 6) 647 | -10/Materials | Discovered new exit (range 16) 791 | -10/Materials | Entered Mines 802 | -10/Mines | Received a Rocket Launcher from a helpful Derelict 898 | -10/Mines | Discovered new exit (range 5) 990 | -10/Mines | Build established: Scavenger-Mutant 1038 | -10/Mines | Core integrity fell below 50% 1078 | -10/Mines | Joined a pair of Derelicts in attacking an 0b10 outpost 1279 | -10/Mines | Discovered new exit (range 6) 1280 | -10/Mines | Learned location of Mines (-9) 1305 | -10/Mines | Learned location of 1 exit from Materials 1341 | -10/Mines | Core integrity fell below 20% 1364 | -10/Mines | Destroyed by G-47 Trooper with Particle Gun Last Messages --------------- 01088_ U-05 Engineer builds a Wall. 01091_ U-05 Engineer builds a Door. 01092_ U-05 Engineer builds a Wall. 01093_ Acquired 10 matter. 01095_ U-05 Engineer builds a Door. 01099_ U-05 Engineer builds a Wall. 01102_ U-05 Engineer lays Concrete. 01110_ K-01 Serf collects debris. 01279_ EXIT=FOUND 01280_ Acquired derelict log, extracted data. World map updated: -9/Mines. 01305_ Acquired derelict log, extracted data. Data stored: Materials exits (x1). 01338_ Core Extractor disabled. 01344_ Lgt. Assault Rifle destroyed. 01346_ Lgt. Ion Engine destroyed. 01347_ G-34 Mercenary destroyed. 01347_ Switching to secondary target: G-47 Trooper. 01352_ Seismic Survey Station disabled. Map ----- +----------------------------------------------------+ | | | | | | | | | | | | | | | ???????????????????????????????????????? | | ??########?????????????????????????????? | | ??# ?????????##??????????????????# | | ??# #???????## ##???????????????# | | ??# #???????# ##?????????????# | | ??# """ #???????# #???????###### | | ??# """ #######??# #??????## < | | ??# """ #??## ##?????# | | ??# ##### ##### ###???# | | ??#########???# < #????# #?? | | ??????????????# ###### #???### ##?? | | ????????#######u##???## #?????## #??? | | ????????# #?????# ##??????# #??? | | ????????# #??????###???????# #??? | | ????????# #????????????????# #??? | | ????????# """ #????????????????# #??? | | ????????# """!#????????????????# #### | | ????????# " %#????????????????# ! | | ????????# g @[#????????????????###### | | ????????# " #?????????????????????? | | ????????# """ #????#####?####???????? | | ????????# """ #???## ### ########? | | ????????# #??## ## | | ????????#### ####??# #### ## | | ???????????# #????## #??# ## | | ???????????# #???## """" #??# | | ???????????# ##### """" #??#### | | ???????????# ## ## """" ????# | | ???????????# ## ########## ???? | | ???????????# ## #????????### #?? | | ???????????# ## #??????????## ##?? | | ???????????# ##%#????????????### ##??? | | ???????????# ## #???????????????###???? | | ???????????# ## #?????????????????????# | | ???????????# ## #????????????######??## | | ???????????# ## #???????????## #### | | ???????????# ## #??????????## | | ???????????# ## #??????????# | | ???????????# ## #??????????# | | ???????????# ## #####??????## | | ???????????# ######### ### | | ???????????# ##?## | | ???????????# ### #???### | +----------------------------------------------------+ Best States ------------- Heat Dissipation 25 Energy Generation 10 Energy Capacity 125 Matter Stores 300 Matter Capacity 300 Sight Range 16 Terrain Scan Range 16 Terrain Scan Density 10 Evasion (%) 62 Targeting Accuracy 5 Item Schematics ----------------- None Robot Schematics ------------------ None Fabricated ------------ Nothing Alien Tech Used ----------------- None Achievements -------------- None Challenges ------------ None Game ------ Seed SegregatorNavigationAnalyzer Manual? 0 Play Time 00:16:25 Cumulative 103.9 hours Start 2024.05.28 @ 21:07:17 End 2024.05.28 @ 21:52:32 Sessions 1 Manual Loads 0 Difficulty Rogue Special Mode None Game No. 92 Rogue 87 Adventurer 5 Explorer 0 Win Type - Total 1 Types 1/0/0/0/0/0/0/0/0 Lore% 46 Gallery% 58 Achievement% 43 Wizard Run 0 Options --------- Layout 2 ASCII 0 Keyboard 0 Movement Mouse Keybinds 0 Fullscreen 2 Font 24/Smallcaps Map View 50x44 Zoom Use 0% Tactical HUD 1 Map Filters NONE Filters NONE Steam 1 RUN: d36d2a18-1baf-4526-b729-ea1b4f8852bb